[Event "Early-Titled-Tuesday-Blitz-April-16-2024"]
[Site "Chess.com"]
[Date "2024.04.16"]
[Round "9"]
[White "LuisFSiles"]
[Black "Vasily_IM"]
[Result "0-1"]
[WhiteElo "2373"]
[BlackElo "2564"]
[TimeControl "180+1"]
[EndTime "9:47:24 PDT"]
[Termination "Vasily_IM won by resignation"]

1. e4 {[%clk 0:03:00.9]} 1... c5 {[%clk 0:02:58.3]} 2. Nf3 {[%clk 0:03:00.3]}
2... e6 {[%clk 0:02:58.2]} 3. c3 {[%clk 0:03:00]} 3... d5 {[%clk 0:02:58.1]} 4.
exd5 {[%clk 0:02:59.8]} 4... Qxd5 {[%clk 0:02:58.6]} 5. d4 {[%clk 0:02:59.1]}
5... Nf6 {[%clk 0:02:59.1]} 6. a3 {[%clk 0:02:58.6]} 6... cxd4 {[%clk
0:02:58.9]} 7. cxd4 {[%clk 0:02:58.4]} 7... Nc6 {[%clk 0:02:58.6]} 8. Nc3 {[%clk
0:02:58.5]} 8... Qd6 {[%clk 0:02:58.8]} 9. Bd3 {[%clk 0:02:54.1]} 9... Be7
{[%clk 0:02:58.6]} 10. O-O {[%clk 0:02:53.3]} 10... O-O {[%clk 0:02:58.9]} 11.
Re1 {[%clk 0:02:49.1]} 11... b6 {[%clk 0:02:58.5]} 12. Bc2 {[%clk 0:02:44.2]}
12... Bb7 {[%clk 0:02:57.8]} 13. Qd3 {[%clk 0:02:43.1]} 13... Rfd8 {[%clk
0:02:54.9]} 14. Be3 {[%clk 0:02:34]} 14... Rac8 {[%clk 0:02:50.8]} 15. Rad1
{[%clk 0:02:32.4]} 15... g6 {[%clk 0:02:49.7]} 16. Bb3 {[%clk 0:02:27.4]} 16...
Bf8 {[%clk 0:02:40.5]} 17. Bg5 {[%clk 0:02:22.4]} 17... Be7 {[%clk 0:02:35.5]}
18. Qe3 {[%clk 0:02:10.4]} 18... Na5 {[%clk 0:02:24.9]} 19. Ba2 {[%clk
0:02:10.5]} 19... Nc4 {[%clk 0:02:23.9]} 20. Bxc4 {[%clk 0:02:00.4]} 20... Rxc4
{[%clk 0:02:23.4]} 21. Ne5 {[%clk 0:01:49.1]} 21... Rcc8 {[%clk 0:02:17.8]} 22.
Qf4 {[%clk 0:01:38.1]} 22... Kg7 {[%clk 0:02:02.2]} 23. Qh4 {[%clk 0:01:29.3]}
23... Re8 {[%clk 0:01:48.5]} 24. Re3 {[%clk 0:01:11.7]} 24... Ng8 {[%clk
0:01:44.7]} 25. Rh3 {[%clk 0:01:06.8]} 25... h5 {[%clk 0:01:38.2]} 26. Qf4
{[%clk 0:00:36.4]} 26... f6 {[%clk 0:01:27.2]} 27. Nb5 {[%clk 0:00:29.6]} 27...
Qd5 {[%clk 0:01:24.8]} 28. Bxf6+ {[%clk 0:00:21.6]} 28... Bxf6 {[%clk
0:01:23.3]} 29. Rg3 {[%clk 0:00:22.1]} 29... Bxe5 {[%clk 0:01:19.4]} 0-1

[Event "Early-Titled-Tuesday-Blitz-April-16-2024"]
[Site "Chess.com"]
[Date "2024.04.16"]
[Round "9"]
[White "mishanick"]
[Black "AlmasRakhmatullaev"]
[Result "1-0"]
[WhiteElo "3056"]
[BlackElo "2873"]
[TimeControl "180+1"]
[EndTime "9:47:25 PDT"]
[Termination "mishanick won by resignation"]

1. d4 {[%clk 0:03:00.9]} 1... d5 {[%clk 0:03:00.5]} 2. c4 {[%clk 0:03:01.4]}
2... c6 {[%clk 0:03:01.4]} 3. Nc3 {[%clk 0:03:01.9]} 3... Nf6 {[%clk 0:03:01.7]}
4. Nf3 {[%clk 0:03:02.7]} 4... a6 {[%clk 0:03:02]} 5. c5 {[%clk 0:03:02.5]} 5...
Bf5 {[%clk 0:03:01.6]} 6. Bf4 {[%clk 0:03:02.4]} 6... Nbd7 {[%clk 0:03:02.1]} 7.
h3 {[%clk 0:03:02.3]} 7... e6 {[%clk 0:03:02.4]} 8. e3 {[%clk 0:03:02.6]} 8...
Be7 {[%clk 0:03:03]} 9. Nh4 {[%clk 0:03:02.2]} 9... Be4 {[%clk 0:02:59.9]} 10.
Be2 {[%clk 0:02:58.9]} 10... h6 {[%clk 0:02:51.4]} 11. Nf3 {[%clk 0:02:56.2]}
11... Bh7 {[%clk 0:02:46.2]} 12. Qb3 {[%clk 0:02:55.5]} 12... Qc8 {[%clk
0:02:46.1]} 13. O-O {[%clk 0:02:45]} 13... g5 {[%clk 0:02:45.3]} 14. Bg3 {[%clk
0:02:44]} 14... Rg8 {[%clk 0:02:42.9]} 15. Ne5 {[%clk 0:02:44.4]} 15... Nxe5
{[%clk 0:02:42.6]} 16. Bxe5 {[%clk 0:02:45.3]} 16... Nd7 {[%clk 0:02:43.2]} 17.
Bh2 {[%clk 0:02:45.1]} 17... Bf5 {[%clk 0:02:27.6]} 18. Rae1 {[%clk 0:02:34.1]}
18... g4 {[%clk 0:02:22.6]} 19. Bxg4 {[%clk 0:02:23.6]} 19... Bxg4 {[%clk
0:02:23.5]} 20. hxg4 {[%clk 0:02:24.3]} 20... Rxg4 {[%clk 0:02:23.4]} 21. e4
{[%clk 0:02:24.9]} 21... Nf6 {[%clk 0:02:17.5]} 22. f3 {[%clk 0:02:23.9]} 22...
Rg6 {[%clk 0:02:16.3]} 23. Be5 {[%clk 0:02:21.7]} 23... Nh5 {[%clk 0:02:09.2]}
24. f4 {[%clk 0:02:18.6]} 24... Kd7 {[%clk 0:01:34]} 25. f5 {[%clk 0:02:17.1]}
25... exf5 {[%clk 0:01:03.9]} 26. exd5 {[%clk 0:02:16.1]} 26... Ra7 {[%clk
0:00:46.9]} 27. d6 {[%clk 0:02:03.5]} 27... Rxg2+ {[%clk 0:00:16.6]} 28. Kxg2
{[%clk 0:02:03.3]} 28... Qg8+ {[%clk 0:00:17.2]} 29. Kh1 {[%clk 0:01:45]} 29...
Qg4 {[%clk 0:00:17.4]} 30. Qxf7 {[%clk 0:01:37]} 30... Qh3+ {[%clk 0:00:06.2]}
31. Bh2 {[%clk 0:01:31.2]} 31... Ng3+ {[%clk 0:00:06.6]} 32. Kg1 {[%clk
0:01:31.7]} 1-0

[Event "Early-Titled-Tuesday-Blitz-April-16-2024"]
[Site "Chess.com"]
[Date "2024.04.16"]
[Round "9"]
[White "dvglko"]
[Black "viktorskliarov"]
[Result "1-0"]
[WhiteElo "2503"]
[BlackElo "2608"]
[TimeControl "180+1"]
[EndTime "9:47:25 PDT"]
[Termination "dvglko won by resignation"]

1. e4 {[%clk 0:02:58.6]} 1... c5 {[%clk 0:02:59.9]} 2. Nf3 {[%clk 0:02:58.7]}
2... Nc6 {[%clk 0:03:00.4]} 3. Bb5 {[%clk 0:02:58.2]} 3... e6 {[%clk 0:03:00.6]}
4. O-O {[%clk 0:02:57.2]} 4... Nge7 {[%clk 0:03:01.2]} 5. Re1 {[%clk 0:02:53.9]}
5... Nd4 {[%clk 0:03:01.5]} 6. Nxd4 {[%clk 0:02:51.2]} 6... cxd4 {[%clk
0:03:02.4]} 7. d3 {[%clk 0:02:47.2]} 7... a6 {[%clk 0:03:01]} 8. Ba4 {[%clk
0:02:47.6]} 8... b5 {[%clk 0:02:58.9]} 9. Bb3 {[%clk 0:02:47.8]} 9... Nc6 {[%clk
0:02:59.5]} 10. a4 {[%clk 0:02:43.1]} 10... Bb7 {[%clk 0:02:59.4]} 11. axb5
{[%clk 0:02:42.6]} 11... axb5 {[%clk 0:03:00.3]} 12. Rxa8 {[%clk 0:02:42.9]}
12... Bxa8 {[%clk 0:03:00.8]} 13. f4 {[%clk 0:02:34.5]} 13... Be7 {[%clk
0:02:54]} 14. Qg4 {[%clk 0:02:24.9]} 14... O-O {[%clk 0:02:52.5]} 15. f5 {[%clk
0:02:23.1]} 15... Kh8 {[%clk 0:02:19.4]} 16. Bf4 {[%clk 0:02:17.9]} 16... Na5
{[%clk 0:01:09]} 17. Ba2 {[%clk 0:02:12.9]} 17... b4 {[%clk 0:01:09.1]} 18. Nd2
{[%clk 0:02:10.5]} 18... Qc8 {[%clk 0:01:02.6]} 19. Nc4 {[%clk 0:01:43.3]} 19...
Nxc4 {[%clk 0:00:49.5]} 20. Bxc4 {[%clk 0:01:44.2]} 20... d5 {[%clk 0:00:44]}
21. exd5 {[%clk 0:01:27.5]} 21... exd5 {[%clk 0:00:41.3]} 22. Rxe7 {[%clk
0:01:17.9]} 22... dxc4 {[%clk 0:00:41]} 23. Be5 {[%clk 0:01:18.4]} 23... Rg8
{[%clk 0:00:38.1]} 24. Rxf7 {[%clk 0:01:08.1]} 1-0

[Event "Early-Titled-Tuesday-Blitz-April-16-2024"]
[Site "Chess.com"]
[Date "2024.04.16"]
[Round "9"]
[White "Chessbard1972"]
[Black "Bilan_Danila"]
[Result "1-0"]
[WhiteElo "2364"]
[BlackElo "2502"]
[TimeControl "180+1"]
[EndTime "9:47:25 PDT"]
[Termination "Chessbard1972 won on time"]

1. d4 {[%clk 0:03:00.9]} 1... d5 {[%clk 0:02:59.9]} 2. c4 {[%clk 0:03:00.6]}
2... c6 {[%clk 0:03:00.2]} 3. Nf3 {[%clk 0:03:00.1]} 3... Nf6 {[%clk 0:03:00.4]}
4. Nc3 {[%clk 0:03:00.4]} 4... e6 {[%clk 0:03:00.2]} 5. Bg5 {[%clk 0:02:59.7]}
5... Nbd7 {[%clk 0:03:00.2]} 6. e3 {[%clk 0:02:59.3]} 6... Be7 {[%clk
0:02:57.9]} 7. cxd5 {[%clk 0:02:58.8]} 7... exd5 {[%clk 0:02:58]} 8. Qc2 {[%clk
0:02:58.7]} 8... O-O {[%clk 0:02:58.6]} 9. Bd3 {[%clk 0:02:58.8]} 9... Re8
{[%clk 0:02:59.2]} 10. O-O {[%clk 0:02:58.9]} 10... Nf8 {[%clk 0:02:59.9]} 11.
Rae1 {[%clk 0:02:58.4]} 11... Ng6 {[%clk 0:02:51.8]} 12. Ne5 {[%clk 0:02:53.7]}
12... Ng4 {[%clk 0:02:15.9]} 13. Bxe7 {[%clk 0:02:47.7]} 13... Qxe7 {[%clk
0:02:16.8]} 14. f4 {[%clk 0:02:45.4]} 14... Nf8 {[%clk 0:01:35.4]} 15. h3 {[%clk
0:02:37.3]} 15... Nxe5 {[%clk 0:01:27.4]} 16. dxe5 {[%clk 0:02:32.3]} 16... f6
{[%clk 0:01:19.8]} 17. exf6 {[%clk 0:02:20.7]} 17... Qxf6 {[%clk 0:01:20.7]} 18.
e4 {[%clk 0:02:20]} 18... Qd4+ {[%clk 0:01:11.3]} 19. Kh1 {[%clk 0:02:17]} 19...
dxe4 {[%clk 0:01:10.1]} 20. Nxe4 {[%clk 0:02:03.5]} 20... Be6 {[%clk 0:00:44.6]}
21. Ng5 {[%clk 0:01:56.6]} 21... h6 {[%clk 0:00:21.9]} 22. Nxe6 {[%clk 0:01:53]}
22... Nxe6 {[%clk 0:00:18.9]} 23. Rxe6 {[%clk 0:01:45.1]} 23... Rxe6 {[%clk
0:00:16.5]} 24. Bc4 {[%clk 0:01:45.3]} 24... Re8 {[%clk 0:00:16.1]} 25. f5
{[%clk 0:01:40.6]} 25... Qf6 {[%clk 0:00:07]} 26. Re1 {[%clk 0:01:33.1]} 26...
Kf8 {[%clk 0:00:02.6]} 27. Bxe6 {[%clk 0:01:29.9]} 27... Qe7 {[%clk 0:00:01.4]}
28. Rd1 {[%clk 0:01:26.1]} 1-0

[Event "Early-Titled-Tuesday-Blitz-April-16-2024"]
[Site "Chess.com"]
[Date "2024.04.16"]
[Round "9"]
[White "Aleksandar-Topalov"]
[Black "kritipatel"]
[Result "1-0"]
[WhiteElo "2345"]
[BlackElo "2176"]
[TimeControl "180+1"]
[EndTime "9:47:29 PDT"]
[Termination "Aleksandar-Topalov won by resignation"]

1. b3 {[%clk 0:03:00.1]} 1... d5 {[%clk 0:02:55.5]} 2. Bb2 {[%clk 0:02:57.6]}
2... c5 {[%clk 0:02:53]} 3. e3 {[%clk 0:02:57.1]} 3... Nc6 {[%clk 0:02:52.9]} 4.
Bb5 {[%clk 0:02:52.2]} 4... Bd7 {[%clk 0:02:47.5]} 5. Nf3 {[%clk 0:02:49.7]}
5... e6 {[%clk 0:02:43]} 6. O-O {[%clk 0:02:47.3]} 6... Nf6 {[%clk 0:02:39.3]}
7. d3 {[%clk 0:02:47]} 7... Bd6 {[%clk 0:02:32.4]} 8. Bxc6 {[%clk 0:02:46.8]}
8... Bxc6 {[%clk 0:02:31.8]} 9. Ne5 {[%clk 0:02:46.9]} 9... Qc7 {[%clk 0:02:22]}
10. f4 {[%clk 0:02:45.8]} 10... Nd7 {[%clk 0:01:17.2]} 11. Qh5 {[%clk
0:02:23.7]} 11... g6 {[%clk 0:01:00]} 12. Qh4 {[%clk 0:01:45.2]} 12... Bxe5
{[%clk 0:00:14]} 13. fxe5 {[%clk 0:01:40.5]} 13... Nxe5 {[%clk 0:00:14]} 14. Qf6
{[%clk 0:01:37.4]} 14... d4 {[%clk 0:00:08]} 15. Qxh8+ {[%clk 0:01:34.8]} 15...
Kd7 {[%clk 0:00:07.4]} 16. Qxa8 {[%clk 0:01:30.2]} 16... Qd6 {[%clk 0:00:05.9]}
17. e4 {[%clk 0:01:07.6]} 17... f5 {[%clk 0:00:06]} 18. Nd2 {[%clk 0:01:06.4]}
18... b6 {[%clk 0:00:04.5]} 19. Qxa7+ {[%clk 0:01:04]} 1-0

[Event "Early-Titled-Tuesday-Blitz-April-16-2024"]
[Site "Chess.com"]
[Date "2024.04.16"]
[Round "9"]
[White "AlexanderKing"]
[Black "Denisenko_Denis"]
[Result "1-0"]
[WhiteElo "2573"]
[BlackElo "2437"]
[TimeControl "180+1"]
[EndTime "9:47:31 PDT"]
[Termination "AlexanderKing won by checkmate"]

1. c4 {[%clk 0:03:00.9]} 1... c6 {[%clk 0:02:59.8]} 2. g3 {[%clk 0:03:01.2]}
2... d5 {[%clk 0:03:00.7]} 3. Nf3 {[%clk 0:03:01.9]} 3... Nf6 {[%clk 0:03:00.6]}
4. Bg2 {[%clk 0:03:02.5]} 4... Bf5 {[%clk 0:03:00.9]} 5. Qb3 {[%clk 0:03:02.8]}
5... Qb6 {[%clk 0:03:00.4]} 6. d3 {[%clk 0:03:03.4]} 6... e6 {[%clk 0:03:00.1]}
7. Be3 {[%clk 0:03:03.8]} 7... Qxb3 {[%clk 0:02:59.5]} 8. axb3 {[%clk
0:03:04.7]} 8... a6 {[%clk 0:03:00.1]} 9. Nh4 {[%clk 0:03:02.8]} 9... Bg4 {[%clk
0:02:59.5]} 10. h3 {[%clk 0:03:03]} 10... Bh5 {[%clk 0:02:59.7]} 11. g4 {[%clk
0:03:03.6]} 11... Bg6 {[%clk 0:03:00.2]} 12. Nd2 {[%clk 0:02:48.5]} 12... Nbd7
{[%clk 0:02:55.1]} 13. Bf4 {[%clk 0:02:05.6]} 13... Be7 {[%clk 0:02:44.9]} 14.
Bg3 {[%clk 0:02:02.2]} 14... O-O {[%clk 0:02:41.5]} 15. O-O {[%clk 0:01:55.6]}
15... Ne8 {[%clk 0:02:28.6]} 16. f4 {[%clk 0:01:46.7]} 16... f5 {[%clk
0:02:23.6]} 17. Nxg6 {[%clk 0:01:41.1]} 17... hxg6 {[%clk 0:02:23.4]} 18. g5
{[%clk 0:01:42]} 18... Bc5+ {[%clk 0:02:11.6]} 19. Bf2 {[%clk 0:01:37.1]} 19...
Bxf2+ {[%clk 0:02:11.1]} 20. Kxf2 {[%clk 0:01:38]} 20... Nd6 {[%clk 0:02:00.8]}
21. e3 {[%clk 0:01:33.3]} 21... Kf7 {[%clk 0:02:00.3]} 22. b4 {[%clk 0:01:25.2]}
22... Rfe8 {[%clk 0:01:54.9]} 23. b3 {[%clk 0:01:21.6]} 23... dxc4 {[%clk
0:01:45.9]} 24. bxc4 {[%clk 0:01:21]} 24... e5 {[%clk 0:01:46]} 25. Rfc1 {[%clk
0:01:01.1]} 25... exf4 {[%clk 0:01:44.5]} 26. exf4 {[%clk 0:01:00.8]} 26... Re7
{[%clk 0:01:42.1]} 27. Bf3 {[%clk 0:00:58.3]} 27... Rh8 {[%clk 0:01:37.1]} 28.
Rh1 {[%clk 0:00:57]} 28... Rhe8 {[%clk 0:01:33.3]} 29. Nb3 {[%clk 0:00:55.9]}
29... Re3 {[%clk 0:01:27.4]} 30. Rad1 {[%clk 0:00:55.5]} 30... Nxc4 {[%clk
0:01:25.3]} 31. dxc4 {[%clk 0:00:56.4]} 31... Rxb3 {[%clk 0:01:20.4]} 32. Rxd7+
{[%clk 0:00:56.2]} 32... Kf8 {[%clk 0:01:21]} 33. Rxb7 {[%clk 0:00:45.2]} 33...
Ree3 {[%clk 0:01:19.8]} 34. Be2 {[%clk 0:00:41.7]} 34... Rec3 {[%clk 0:01:18.6]}
35. Rd1 {[%clk 0:00:34.1]} 35... Ke8 {[%clk 0:01:13]} 36. Rdd7 {[%clk
0:00:31.6]} 36... Rxh3 {[%clk 0:01:11.5]} 37. Rxg7 {[%clk 0:00:31.9]} 37... Rh2+
{[%clk 0:01:11.7]} 38. Kg1 {[%clk 0:00:30.9]} 38... Rh8 {[%clk 0:01:11.6]} 39.
Rb8# {[%clk 0:00:30.6]} 1-0

[Event "Early-Titled-Tuesday-Blitz-April-16-2024"]
[Site "Chess.com"]
[Date "2024.04.16"]
[Round "9"]
[White "NigiriSushies"]
[Black "Predator0608"]
[Result "0-1"]
[WhiteElo "2423"]
[BlackElo "2577"]
[TimeControl "180+1"]
[EndTime "9:47:48 PDT"]
[Termination "Predator0608 won by checkmate"]

1. Nf3 {[%clk 0:03:00.9]} 1... Nf6 {[%clk 0:02:59.1]} 2. g3 {[%clk 0:03:01.1]}
2... b6 {[%clk 0:02:59.5]} 3. Bg2 {[%clk 0:03:01.7]} 3... Bb7 {[%clk 0:03:00.4]}
4. O-O {[%clk 0:03:02.4]} 4... e6 {[%clk 0:02:59.2]} 5. d3 {[%clk 0:03:02.6]}
5... Be7 {[%clk 0:02:59.6]} 6. e4 {[%clk 0:03:03.2]} 6... O-O {[%clk 0:03:00.2]}
7. c4 {[%clk 0:03:02]} 7... c5 {[%clk 0:02:59.8]} 8. Nc3 {[%clk 0:03:01.8]} 8...
d6 {[%clk 0:03:00.1]} 9. Re1 {[%clk 0:03:01.4]} 9... e5 {[%clk 0:03:00.6]} 10.
a3 {[%clk 0:03:00.8]} 10... Nc6 {[%clk 0:02:59.7]} 11. b4 {[%clk 0:03:01.2]}
11... cxb4 {[%clk 0:02:59.1]} 12. axb4 {[%clk 0:03:02.1]} 12... Nxb4 {[%clk
0:03:00]} 13. Ba3 {[%clk 0:03:01.6]} 13... Nc6 {[%clk 0:02:58.7]} 14. d4 {[%clk
0:03:02.2]} 14... exd4 {[%clk 0:02:55.6]} 15. Nxd4 {[%clk 0:03:03.1]} 15... Ne5
{[%clk 0:02:56.5]} 16. Nf5 {[%clk 0:03:02.8]} 16... Nxc4 {[%clk 0:02:52.5]} 17.
e5 {[%clk 0:02:54.4]} 17... Bxg2 {[%clk 0:02:45.5]} 18. Nxe7+ {[%clk 0:02:53.6]}
18... Qxe7 {[%clk 0:02:41.3]} 19. Kxg2 {[%clk 0:02:40.3]} 19... Nxe5 {[%clk
0:02:25.7]} 20. Bxd6 {[%clk 0:02:21.4]} 20... Qb7+ {[%clk 0:02:24.9]} 21. Kf1
{[%clk 0:02:20.5]} 21... Nf3 {[%clk 0:01:28.7]} 22. Bxf8 {[%clk 0:01:55]} 22...
Nxh2+ {[%clk 0:01:27.5]} 23. Kg1 {[%clk 0:01:50.6]} 23... Nf3+ {[%clk
0:01:26.5]} 24. Kf1 {[%clk 0:01:51.1]} 24... Nxe1 {[%clk 0:01:24]} 25. Bxg7
{[%clk 0:01:49.8]} 25... Qh1+ {[%clk 0:01:14.5]} 26. Ke2 {[%clk 0:01:47]} 26...
Re8+ {[%clk 0:01:15.4]} 27. Kd2 {[%clk 0:01:46.4]} 27... Rd8+ {[%clk 0:01:15.2]}
28. Ke2 {[%clk 0:01:41.5]} 28... Rxd1 {[%clk 0:01:16.1]} 29. Bxf6 {[%clk
0:01:38.5]} 29... Rxa1 {[%clk 0:01:13.7]} 30. Nd5 {[%clk 0:01:38.7]} 30... Qxd5
{[%clk 0:01:12.6]} 31. f4 {[%clk 0:01:38.3]} 31... Qf3+ {[%clk 0:01:08.4]} 32.
Kd2 {[%clk 0:01:37.5]} 32... Qxg3 {[%clk 0:01:09.3]} 33. f5 {[%clk 0:01:38.4]}
33... Qf4+ {[%clk 0:01:07.9]} 34. Kc3 {[%clk 0:01:38.2]} 34... Qxf5 {[%clk
0:01:07.8]} 35. Kb4 {[%clk 0:01:39.1]} 35... Qxf6 {[%clk 0:01:04.4]} 36. Kb5
{[%clk 0:01:39]} 36... h5 {[%clk 0:01:04.5]} 37. Kb4 {[%clk 0:01:39.2]} 37... h4
{[%clk 0:01:05.4]} 38. Kb5 {[%clk 0:01:40.1]} 38... h3 {[%clk 0:01:05.8]} 39.
Kb4 {[%clk 0:01:41]} 39... h2 {[%clk 0:01:06.5]} 40. Kb5 {[%clk 0:01:41.9]}
40... h1=N {[%clk 0:01:06.1]} 41. Kb4 {[%clk 0:01:42.8]} 41... Qe6 {[%clk
0:00:58.8]} 42. Kb5 {[%clk 0:01:43.7]} 42... f5 {[%clk 0:00:59.2]} 43. Kb4
{[%clk 0:01:44.6]} 43... f4 {[%clk 0:00:59.7]} 44. Kb5 {[%clk 0:01:45.5]} 44...
f3 {[%clk 0:00:59.8]} 45. Kb4 {[%clk 0:01:46.4]} 45... f2 {[%clk 0:00:59.2]} 46.
Kb5 {[%clk 0:01:47.3]} 46... f1=N {[%clk 0:00:58.9]} 47. Kb4 {[%clk 0:01:48.2]}
47... a5+ {[%clk 0:00:56.5]} 48. Kb5 {[%clk 0:01:49.1]} 48... a4 {[%clk
0:00:56.8]} 49. Kb4 {[%clk 0:01:50]} 49... a3 {[%clk 0:00:55.3]} 50. Kb5 {[%clk
0:01:50.9]} 50... a2 {[%clk 0:00:52.1]} 51. Kb4 {[%clk 0:01:51.8]} 51... Rb1+
{[%clk 0:00:51.4]} 52. Ka4 {[%clk 0:01:49.2]} 52... a1=N {[%clk 0:00:49.3]} 53.
Ka3 {[%clk 0:01:49.4]} 53... Nac2+ {[%clk 0:00:44.9]} 54. Ka4 {[%clk 0:01:50.3]}
54... b5+ {[%clk 0:00:45.8]} 55. Ka5 {[%clk 0:01:50.2]} 55... b4 {[%clk
0:00:46.1]} 56. Ka4 {[%clk 0:01:50.4]} 56... b3 {[%clk 0:00:46.5]} 57. Ka5
{[%clk 0:01:51.3]} 57... b2 {[%clk 0:00:46.6]} 58. Ka4 {[%clk 0:01:52.2]} 58...
Ra1+ {[%clk 0:00:45.3]} 59. Kb5 {[%clk 0:01:52.6]} 59... b1=N {[%clk 0:00:43.9]}
60. Kc5 {[%clk 0:01:53.5]} 60... Nhg3 {[%clk 0:00:40.5]} 61. Kb5 {[%clk
0:01:54.4]} 61... Nfe3 {[%clk 0:00:40.4]} 62. Kc5 {[%clk 0:01:55.3]} 62... Nd3+
{[%clk 0:00:36.7]} 63. Kb5 {[%clk 0:01:56.2]} 63... Ne5 {[%clk 0:00:37.1]} 64.
Kc5 {[%clk 0:01:57.1]} 64... Ne4+ {[%clk 0:00:36.7]} 65. Kb5 {[%clk 0:01:58]}
65... Nbc3# {[%clk 0:00:36]} 0-1

[Event "Early-Titled-Tuesday-Blitz-April-16-2024"]
[Site "Chess.com"]
[Date "2024.04.16"]
[Round "9"]
[White "vovachesss"]
[Black "Grossboss19"]
[Result "1-0"]
[WhiteElo "2764"]
[BlackElo "2607"]
[TimeControl "180+1"]
[EndTime "9:47:52 PDT"]
[Termination "vovachesss won by resignation"]

1. c4 {[%clk 0:03:00.9]} 1... e6 {[%clk 0:02:34.4]} 2. Nc3 {[%clk 0:03:00.1]}
2... d5 {[%clk 0:02:34.6]} 3. d4 {[%clk 0:02:58.5]} 3... Nf6 {[%clk 0:02:33.7]}
4. Nf3 {[%clk 0:02:56.9]} 4... Be7 {[%clk 0:02:34.2]} 5. g3 {[%clk 0:02:56.6]}
5... O-O {[%clk 0:02:34.7]} 6. Bg2 {[%clk 0:02:57.3]} 6... b6 {[%clk 0:02:34.3]}
7. O-O {[%clk 0:02:56]} 7... Bb7 {[%clk 0:02:34.7]} 8. cxd5 {[%clk 0:02:56.5]}
8... Nxd5 {[%clk 0:02:34.2]} 9. Qc2 {[%clk 0:02:52.5]} 9... Nxc3 {[%clk
0:02:34]} 10. bxc3 {[%clk 0:02:52.6]} 10... c5 {[%clk 0:02:34.5]} 11. Ng5 {[%clk
0:02:51.9]} 11... Bxg5 {[%clk 0:02:30.9]} 12. Bxb7 {[%clk 0:02:47.8]} 12... Bxc1
{[%clk 0:02:30.8]} 13. Bxa8 {[%clk 0:02:42.2]} 13... Bg5 {[%clk 0:02:26.8]} 14.
Rfd1 {[%clk 0:02:40.7]} 14... Qc7 {[%clk 0:02:26]} 15. Bf3 {[%clk 0:02:38.1]}
15... cxd4 {[%clk 0:02:24]} 16. Rxd4 {[%clk 0:02:39]} 16... Bf6 {[%clk 0:02:24]}
17. Rd3 {[%clk 0:02:37.8]} 17... Nd7 {[%clk 0:02:22.7]} 18. Rad1 {[%clk
0:02:37.3]} 18... Ne5 {[%clk 0:02:21]} 19. R3d2 {[%clk 0:02:33.6]} 19... Rc8
{[%clk 0:02:18.1]} 20. Kg2 {[%clk 0:02:19.5]} 20... g6 {[%clk 0:02:17.8]} 21.
Qa4 {[%clk 0:02:14.1]} 21... Kg7 {[%clk 0:02:09.1]} 22. h4 {[%clk 0:02:10.6]}
22... h5 {[%clk 0:02:08.4]} 23. Rd6 {[%clk 0:01:55.4]} 23... Be7 {[%clk
0:02:04]} 24. Rd7 {[%clk 0:01:17.1]} 24... Nxd7 {[%clk 0:02:03]} 25. Rxd7 {[%clk
0:01:17.1]} 25... Qc5 {[%clk 0:01:59.4]} 26. Qxa7 {[%clk 0:01:15.4]} 26... Kf8
{[%clk 0:01:57.4]} 27. Qb7 {[%clk 0:01:10.8]} 27... Rd8 {[%clk 0:01:46.4]} 28.
Rc7 {[%clk 0:01:08.6]} 28... Qa3 {[%clk 0:01:39.1]} 29. c4 {[%clk 0:01:00.4]}
29... Qd6 {[%clk 0:01:31.3]} 30. Rc6 {[%clk 0:00:56.8]} 30... Qa3 {[%clk
0:01:30.9]} 31. Rc7 {[%clk 0:00:55.6]} 31... Qd6 {[%clk 0:01:30.2]} 32. a4
{[%clk 0:00:55.4]} 32... Qb4 {[%clk 0:01:25.4]} 33. c5 {[%clk 0:00:51.5]} 33...
Qxc5 {[%clk 0:01:10]} 34. Rxc5 {[%clk 0:00:51.1]} 34... Bxc5 {[%clk 0:01:10.9]}
35. Qc7 {[%clk 0:00:43.7]} 35... Rd4 {[%clk 0:00:44.5]} 36. a5 {[%clk
0:00:43.5]} 1-0

[Event "Early-Titled-Tuesday-Blitz-April-16-2024"]
[Site "Chess.com"]
[Date "2024.04.16"]
[Round "9"]
[White "romulocardoso"]
[Black "lluiss"]
[Result "1-0"]
[WhiteElo "2316"]
[BlackElo "2083"]
[TimeControl "180+1"]
[EndTime "9:47:57 PDT"]
[Termination "romulocardoso won by resignation"]

1. e4 {[%clk 0:03:00.9]} 1... c5 {[%clk 0:02:59]} 2. Nf3 {[%clk 0:03:00.2]} 2...
d6 {[%clk 0:02:58.9]} 3. d4 {[%clk 0:03:00.2]} 3... cxd4 {[%clk 0:02:58.8]} 4.
Nxd4 {[%clk 0:03:01.1]} 4... Nf6 {[%clk 0:02:58.1]} 5. Nc3 {[%clk 0:03:01.6]}
5... g6 {[%clk 0:02:58]} 6. f3 {[%clk 0:03:01.2]} 6... Bg7 {[%clk 0:02:57.7]} 7.
Be3 {[%clk 0:03:01.8]} 7... O-O {[%clk 0:02:57.7]} 8. Bc4 {[%clk 0:03:02.3]}
8... Nc6 {[%clk 0:02:57.7]} 9. Qd2 {[%clk 0:03:02.6]} 9... Bd7 {[%clk
0:02:56.1]} 10. O-O-O {[%clk 0:03:03.1]} 10... Ne5 {[%clk 0:02:56.2]} 11. Bb3
{[%clk 0:03:03.2]} 11... Qa5 {[%clk 0:02:56.1]} 12. Kb1 {[%clk 0:03:03.2]} 12...
Rfc8 {[%clk 0:02:55.9]} 13. g4 {[%clk 0:03:03.6]} 13... Rc5 {[%clk 0:02:49.5]}
14. Nd5 {[%clk 0:02:30]} 14... Qxd2 {[%clk 0:02:47.1]} 15. Nxf6+ {[%clk
0:02:29.2]} 15... Bxf6 {[%clk 0:02:45.8]} 16. Rxd2 {[%clk 0:02:29.9]} 16... Nc4
{[%clk 0:02:39.4]} 17. Bxc4 {[%clk 0:02:29.3]} 17... Rxc4 {[%clk 0:02:40.3]} 18.
g5 {[%clk 0:02:27.5]} 18... Be5 {[%clk 0:02:27.3]} 19. f4 {[%clk 0:02:27.1]}
19... Bxd4 {[%clk 0:02:27]} 20. Bxd4 {[%clk 0:02:27.6]} 20... Bc6 {[%clk
0:02:26.3]} 21. b3 {[%clk 0:02:17.7]} 21... Rb4 {[%clk 0:02:00.2]} 22. a3 {[%clk
0:01:47.3]} 22... Rb5 {[%clk 0:01:43.7]} 23. a4 {[%clk 0:01:45.6]} 23... Rb4
{[%clk 0:01:33.2]} 24. Kb2 {[%clk 0:01:45.6]} 24... e5 {[%clk 0:01:27.2]} 25. c3
{[%clk 0:01:36.5]} 25... Bxe4 {[%clk 0:01:07]} 26. Re1 {[%clk 0:01:33.4]} 26...
exd4 {[%clk 0:01:06.7]} 27. cxb4 {[%clk 0:01:32.8]} 27... d5 {[%clk 0:01:06.9]}
28. Rxd4 {[%clk 0:01:32.8]} 28... Rc8 {[%clk 0:01:01.2]} 29. b5 {[%clk
0:01:30.1]} 29... Kg7 {[%clk 0:01:00]} 30. a5 {[%clk 0:01:29.9]} 30... f6 {[%clk
0:00:59.4]} 31. h4 {[%clk 0:01:29]} 31... Kf7 {[%clk 0:00:58.5]} 32. b4 {[%clk
0:01:26.8]} 32... Ke6 {[%clk 0:00:58.1]} 33. Rc1 {[%clk 0:01:13.8]} 33... Rxc1
{[%clk 0:00:54.2]} 34. Kxc1 {[%clk 0:01:14.7]} 34... fxg5 {[%clk 0:00:52.3]} 35.
fxg5 {[%clk 0:01:14.4]} 35... Ke5 {[%clk 0:00:52.4]} 36. Rd2 {[%clk 0:01:14.6]}
36... d4 {[%clk 0:00:51.2]} 37. Kb2 {[%clk 0:01:14.8]} 37... Bf3 {[%clk
0:00:48.5]} 38. Kb3 {[%clk 0:01:14.2]} 38... Ke4 {[%clk 0:00:47.4]} 39. Kc4
{[%clk 0:01:14]} 39... d3 {[%clk 0:00:45.7]} 40. a6 {[%clk 0:01:14.4]} 40...
bxa6 {[%clk 0:00:45]} 41. bxa6 {[%clk 0:01:15.3]} 41... Be2 {[%clk 0:00:44]} 42.
b5 {[%clk 0:01:15.1]} 42... Ke3 {[%clk 0:00:44]} 43. Kc3 {[%clk 0:01:14.8]} 1-0